Cogmind - Beta 13 *** ADVENTURER MODE // 2024.04.01 @ 13:05:16 Player: Hnefi Result: Self-destructed Performance ------------- Evolutions (4) 2000 Regions Visited (6) 1200 Robots Destroyed (42) 210 Value Destroyed (1279) 1279 Prototype IDs (1) 20 Alien Tech Used (0) 0 Bonus (485) 485 TOTAL SCORE: 5194 Bonus ------- Follower Combat Kills 20 Met Imprinter 300 Was Imprinted 300 Friendly Fire -135 Cogmind --------- Core Integrity 820/850 Matter 399/450 Energy 465/465 System Corruption 0% Temperature Cool (0) Movement Walking (470) Ox5 Location -6/Factory Parts ------- > --- POWER (2) -------- Ion Engine Neutrino Core > --- PROPULSION (4) --- Aluminum Leg > --- UTILITY (5) ------ Large Storage Unit Large Matter Pod Sensor Array Signal Interpreter Hardlight Generator > --- WEAPON (4) ------- Battle Rifle Missile Launcher Heavy Mace > --- INVENTORY (15) --- Kinecellerator CR-A16's Pointy Stick Peak State ------------ > --- POWER ------------ Ion Engine Neutrino Core > --- PROPULSION ------- Aluminum Leg > --- UTILITY ---------- Large Storage Unit Large Matter Pod Sensor Array Signal Interpreter Hardlight Generator > --- WEAPON ----------- Battle Rifle Missile Launcher Precision Grenade Launcher Heavy Mace > --- INVENTORY -------- CR-A16's Pointy Stick [Rating: 28] Favorites ----------- Power Reinforced Ion Engine Engine Reinforced Ion Engine Power Core Neutrino Core Propulsion Aluminum Leg Leg Aluminum Leg Utility Large Storage Unit Device Sensor Array Storage Large Storage Unit Processor Signal Interpreter Weapon Heavy Assault Rifle Ballistic Gun Heavy Assault Rifle Launcher Precision Grenade Launcher Impact Weapon Heavy Mace Piercing Weapon CR-A16's Pointy Stick Build | -11 -10 -9 -9 -7 -6 -6 ------- Run | Yrd Mat Mat Min Zio Pro Fac Slots Evolved 8 | . . 2 . . . 6 Power 1 | . . . . . . 1 Propulsion 2 | . . 2 . . . . Utility 3 | . . . . . . 3 Weapon 2 | . . . . . . 2 Parts Attached 40 | 6 4 9 2 2 11 6 Power 6 | 1 . 2 1 . 1 1 Engine 5 | 1 . 2 1 . 1 . Core 1 | . . . . . . 1 Reactor . | . . . . . . . Propulsion 12 | 2 . 4 1 1 4 . Treads . | . . . . . . . Leg 12 | 2 . 4 1 1 4 . Wheel . | . . . . . . . Hover . | . . . . . . . Flight . | . . . . . . . Utility 8 | 1 4 . . . . 3 Device 2 | . . . . . . 2 Storage 5 | 1 4 . . . . . Processor 1 | . . . . . . 1 Hackware . | . . . . . . . Protection . | . . . . . . . Artifact . | . . . . . . . Weapon 14 | 2 . 3 . 1 6 2 Energy Gun . | . . . . . . . Energy Cannon . | . . . . . . . Ballistic Gun 9 | 2 . 3 . 1 3 . Ballistic Cannon . | . . . . . . . Launcher 3 | . . . . . 2 1 Special Weapon . | . . . . . . . Impact Weapon 1 | . . . . . . 1 Slashing Weapon . | . . . . . . . Piercing Weapon 1 | . . . . . 1 . Special Melee Weapon . | . . . . . . . Unidentified Prototypes 1 | . . . . . 1 . Parts Lost 13 | . . 1 . . 11 1 Power 1 | . . . . . 1 . Propulsion 8 | . . 1 . . 7 . Utility . | . . . . . . . Weapon 4 | . . . . . 3 1 Highest Loss Streak 9 | . . 1 . . 9 1 To Critical Strikes . | . . . . . . . Average Slot Usage (%) 90 | . 98 96 100 100 72 80 Engine 10 | . 14 11 11 11 9 6 Leg 31 | . 28 40 44 44 19 6 Device 1 | . . . . . . 13 Storage 21 | . 26 22 22 22 22 13 Ballistic Gun 18 | . 28 22 22 22 12 6 Launcher 2 | . . . . . 6 13 Naked Turns . | . . . . . . . Heaviest Build 65 | 14 32 36 39 40 42 65 Greatest Support 50 | 20 20 40 40 50 50 10 Greatest Overweight (x) 6 | 2 1 1 . . 3 6 Average Overweight (x) . | . . . . . 1 6 Largest Inventory Capacity 15 | 8 15 15 15 15 15 15 Average Capacity 14 | 6 10 15 15 15 15 15 Most Carried 15 | 2 9 15 15 15 15 6 Average Carried 10 | 1 5 12 14 14 8 1 Final Capacity 15 | 8 15 15 15 15 15 15 Final Carried 15 | 2 9 15 14 15 7 2 Class Distribution -------------------- 54% | Scavenger-Mutant 35% | Mutant 9% | Scavenger-Skirmisher Dominant Class ---------------- Mutant | -10/Materials Scavenger-Mutant | -9/Materials Scavenger-Mutant | -9/Mines Scavenger-Mutant | -7/Zion Mutant | -6/Proximity Caves Scavenger-Skirmisher | -6/Factory Resources | -11 -10 -9 -9 -7 -6 -6 ----------- Run | Yrd Mat Mat Min Zio Pro Fac Matter Collected 1448 | 170 358 571 71 20 234 24 Remotely . | . . . . . . . Salvage Created 1466 | . 302 688 141 . 311 24 Parts 89 | . 11 53 5 . 20 . Haulers Intercepted . | . . . . . . . Recyclers Shooed 2 | . 1 1 . . . . Parts Field Recycled . | . . . . . . . Retrieved Matter . | . . . . . . . Parts Self-Destructed 18 | . . . . . 18 . Prevented . | . . . . . . . Kills | -11 -10 -9 -9 -7 -6 -6 ------- Run | Yrd Mat Mat Min Zio Pro Fac Combat Hostiles Destroyed 35 | . 6 14 3 . 12 . Melee 1 | . . . . . 1 . Guns 32 | . 6 14 3 . 9 . AOE 2 | . . . . . 2 . Classes Destroyed 12 | . 2 5 1 . 3 1 Worker 1 | . . 1 . . . . Tunneler 1 | . . . . . . 1 Recycler 1 | . . 1 . . . . Operator 1 | . . 1 . . . . Watcher 2 | . 1 1 . . . . Swarmer 13 | . . 3 . . 10 . Grunt 15 | . 6 7 2 . . . Brawler 1 | . . . 1 . . . Sentry 4 | . . 4 . . . . Hunter 1 | . . . . . 1 . Programmer 1 | . . . . . 1 . Fireman 1 | . . . . . 1 . Best Kill Streak 7 | . 3 5 3 . 7 1 Combat Bots Only 7 | . 2 5 3 . 7 . Max Kills in Single Turn 2 | . 1 1 1 . 2 1 Gunslinging 1 | . . . . . 1 . Exploded 2 | . . . . . 2 . Melee 1 | . . . . . 1 . Uniques/NPCs Destroyed . | . . . . . . . Combat | -11 -10 -9 -9 -7 -6 -6 -------- Run | Yrd Mat Mat Min Zio Pro Fac Hostile Shots Fired 269 | . 21 78 26 . 114 30 Missed 68 | . 8 18 7 . 31 4 Damage Taken 2026 | . 140 584 192 . 969 141 Core 378 | . 34 135 8 . 171 30 Absorbed by Shields 56 | . . . . . . 56 Ignored by Resistances 620 | . 44 173 59 . 287 57 Core Remaining (%) 69 | 100 86 . . . 21 . Volleys Fired 108 | . 20 50 8 . 30 . Largest 2 | . 2 2 2 . 2 . Hottest 59 | . 40 46 46 . 59 . Shots Fired 197 | . 40 100 16 . 41 . Gun 192 | . 40 100 16 . 36 . Cannon . | . . . . . . . Launcher 5 | . . . . . 5 . Special . | . . . . . . . Kinetic 192 | . 40 100 16 . 36 . Thermal . | . . . . . . . Explosive 5 | . . . . . 5 . Electromagnetic . | . . . . . . . Robot Hit Streak 32 | . 22 32 10 . 21 . Robot Miss Streak 3 | . 2 2 2 . 3 . Penetration Max . | . . . . . . . Secondary Targets 4 | . 1 . 1 . 2 . Max Gunslinging Chain 1 | . 1 . 1 . 1 . Shots Hit Robots 162 | . 33 79 12 . 37 1 Core Hits 77 | . 14 30 4 . 29 . Critical Kills 1 | . 1 . . . . . Critical Parts Destroyed 3 | . . 2 1 . . . Critical Strikes 4 | . 1 2 1 . . . Destroy 4 | . 1 2 1 . . . Melee Attacks 5 | . . . . . 4 1 Impact 1 | . . . . . . 1 Slashing . | . . . . . . . Piercing 4 | . . . . . 4 . Sneak Attacks 1 | . . . . . . 1 Combat Hostiles . | . . . . . . . Follow-up Attacks . | . . . . . . . Damage Inflicted 2636 | . 430 1066 186 . 876 78 Guns 2181 | . 429 1051 186 . 515 . Cannons . | . . . . . . . Explosions 326 | . . . . . 326 . Melee 113 | . . . . . 35 78 Ramming 16 | . 1 15 . . . . Kinetic 2181 | . 429 1051 186 . 515 . Thermal . | . . . . . . . Explosive 326 | . . . . . 326 . Electromagnetic . | . . . . . . . Impact 78 | . . . . . . 78 Slashing . | . . . . . . . Piercing 35 | . . . . . 35 . Highest Corruption . | . . . . . . . Average Corruption . | . . . . . . . Corruption Purged . | . . . . . . . Corruption Blocked . | . . . . . . . Overload Shots . | . . . . . . . Overflow Damage 43 | . . . . . 5 38 Projectiles . | . . . . . . . Explosions 5 | . . . . . 5 . Melee 38 | . . . . . . 38 Knockbacks . | . . . . . . . Impact . | . . . . . . . Kinetic . | . . . . . . . Secondary . | . . . . . . . Self-Inflicted Damage . | . . . . . . . Shots . | . . . . . . . Rammed . | . . . . . . . Targets Rammed 6 | . 1 5 . . . . Kicked 6 | . 1 5 . . . . Crushed . | . . . . . . . Highest Temperature 17 | . 8 17 5 . 8 . Average Temperature 4 | . 2 4 5 . 4 . Received Heat Transfer 579 | . 99 390 90 . . . Siege Activations . | . . . . . . . Robots Corrupted . | . . . . . . . Combat Hostiles . | . . . . . . . Parts Fried 3 | . . . . . . 3 Impact Corruptions 2 | . . . . . . 2 Robots Melted . | . . . . . . . Combat Hostiles . | . . . . . . . Parts Melted 1 | . . . . . 1 . Heat Transferred . | . . . . . . . Parts Sabotaged . | . . . . . . . Parts Stolen . | . . . . . . . Parts Stripped . | . . . . . . . Power Chain Reactions . | . . . . . . . Alert | -11 -10 -9 -9 -7 -6 -6 ------- Run | Yrd Mat Mat Min Zio Pro Fac Peak Influence 303 | . 191 303 180 . . 5 Initial 95 | . . . 95 . . . Average 110 | . 103 168 171 . . 3 Maximum Alert Level 1 | . . 1 . . . . Low Security (%) 86 | 100 100 65 100 . . 100 Level 1 13 | . . 34 . . . . Level 2 . | . . . . . . . Level 3 . | . . . . . . . Level 4 . | . . . . . . . Level 5 . | . . . . . . . High Security . | . . . . . . . Max Security . | . . . . . . . Squads Dispatched 2 | . . 1 . . . 1 Investigation . | . . . . . . . Extermination 1 | . . . . . . 1 Reinforcement 1 | . . 1 . . . . Assault . | . . . . . . . Garrison . | . . . . . . . Intercept . | . . . . . . . Searches Triggered . | . . . . . . . Construction Impeded . | . . . . . . . Haulers Reinforced . | . . . . . . . Active Scanning Responses . | . . . . . . . Cargo Convoy Interrupts . | . . . . . . . Stealth | -11 -10 -9 -9 -7 -6 -6 --------- Run | Yrd Mat Mat Min Zio Pro Fac Distress Signals 2 | . 1 1 . . . . Communications Jammed . | . . . . . . . Distress Signals . | . . . . . . . Times Spotted 50 | . 9 22 3 . 14 2 Peak Tracking Total 5 | . 3 5 3 . 5 3 Tactical Retreats 3 | . 1 1 . . 1 . Traps | -11 -10 -9 -9 -7 -6 -6 ------- Run | Yrd Mat Mat Min Zio Pro Fac Traps Triggered . | . . . . . . . Indirectly . | . . . . . . . Trap Hack Attempts . | . . . . . . . Triggered . | . . . . . . . Disarmed . | . . . . . . . Reprogrammed . | . . . . . . . Reused . | . . . . . . . Traps Extracted . | . . . . . . . Installed . | . . . . . . . Triggered . | . . . . . . . Machines | -11 -10 -9 -9 -7 -6 -6 ---------- Run | Yrd Mat Mat Min Zio Pro Fac Machines Disabled . | . . . . . . . Max in Single Turn . | . . . . . . . Machines Repaired . | . . . . . . . Machines Dismantled . | . . . . . . . Machines Sabotaged . | . . . . . . . Overloaded Fab Kills . | . . . . . . . Hacking | -11 -10 -9 -9 -7 -6 -6 --------- Run | Yrd Mat Mat Min Zio Pro Fac Machines Accessed 4 | . 2 2 . . . . Terminals 3 | . 2 1 . . . . Fabricators . | . . . . . . . Repair Stations . | . . . . . . . Recycling Units . | . . . . . . . Scanalyzers 1 | . . 1 . . . . Garrison Access . | . . . . . . . Total Hacks 8 | . 3 5 . . . . Successful 7 | . 2 5 . . . . Failed 1 | . 1 . . . . . Catastrophic 1 | . 1 . . . . . Database Lockouts . | . . . . . . . Manual 7 | . 2 . . 5 . . Terminals 5 | . 3 2 . . . . Fabricators . | . . . . . . . Repair Stations . | . . . . . . . Recycling Units . | . . . . . . . Scanalyzers 3 | . . 3 . . . . Garrison Access . | . . . . . . . Terminal Hacks 4 | . 2 2 . . . . Record 2 | . 2 . . . . . Alert Level 2 | . . 2 . . . . Fabricator Hacks . | . . . . . . . Repair Station Hacks . | . . . . . . . Recycling Unit Hacks . | . . . . . . . Scanalyzer 3 | . . 3 . . . . Insert Component 1 | . . 1 . . . . Analyze 2 | . . 2 . . . . Garrison Access Hacks . | . . . . . . . Unauthorized Hacks . | . . . . . . . Terminals . | . . . . . . . Fabricators . | . . . . . . . Repair Stations . | . . . . . . . Recycling Units . | . . . . . . . Scanalyzers . | . . . . . . . Garrison Access . | . . . . . . . Data Cores Recovered 1 | . . 1 . . . . Used . | . . . . . . . Hacking Detections 3 | . 1 2 . . . . Full Trace Events . | . . . . . . . Feedback Events . | . . . . . . . Feedback Blocked . | . . . . . . . Robot Schematics Acquired 3 | . . . . 3 . . Robots Built . | . . . . . . . Authchips . | . . . . . . . Time . | . . . . . . . Total Robot Build Rating . | . . . . . . . Part Schematics Acquired 16 | . . 1 . 15 . . Parts Built . | . . . . . . . Authchips . | . . . . . . . Time . | . . . . . . . Total Part Build Rating . | . . . . . . . Parts Repaired . | . . . . . . . Time . | . . . . . . . Parts Recycled . | . . . . . . . Recycled Matter . | . . . . . . . Retrieved Matter . | . . . . . . . Retrieved Components . | . . . . . . . Parts Scanalyzed 1 | . . 1 . . . . Part Schematics Acquired 1 | . . 1 . . . . Parts Damaged . | . . . . . . . Bothacking | -11 -10 -9 -9 -7 -6 -6 ------------ Run | Yrd Mat Mat Min Zio Pro Fac Used RIF Installer . | . . . . . . . Robots Hacked . | . . . . . . . Non-combat . | . . . . . . . Combat . | . . . . . . . Robot Hacks Applied . | . . . . . . . Relay Couplers Released . | . . . . . . . Fabnet Peak Effective % . | . . . . . . . Robots Rewired . | . . . . . . . Allies Hacked . | . . . . . . . Hacks Repelled . | . . . . . . . Allies | -11 -10 -9 -9 -7 -6 -6 -------- Run | Yrd Mat Mat Min Zio Pro Fac Total Allies 7 | . . . . 7 . . Largest Group 7 | . . . . 7 2 . Highest-Rated Group 214 | . . . . 214 42 . Highest-Rated Ally 41 | . . . . 41 28 . Total Orders . | . . . . . . . Ally Attacks 12 | . . . . . 12 . Total Damage 100 | . . . . . 100 . Kills 1 | . . . . . 1 . Allies Corrupted . | . . . . . . . Allies Melted . | . . . . . . . Intel | -11 -10 -9 -9 -7 -6 -6 ------- Run | Yrd Mat Mat Min Zio Pro Fac Robot Analysis Total . | . . . . . . . Derelict Logs Recovered 2 | . . . 1 1 . . Drone Launches . | . . . . . . . Drone Recoveries . | . . . . . . . Exploration | -11 -10 -9 -9 -7 -6 -6 ------------- Run | Yrd Mat Mat Min Zio Pro Fac Turns Passed 3657 | 49 416 617 182 1180 857 356 Spaces Moved 2071 | 35 248 329 128 951 318 62 Core 6 | 6 . . . . . . Treads . | . . . . . . . Legs 2065 | 29 248 329 128 951 318 62 Wheels . | . . . . . . . Hover . | . . . . . . . Flight . | . . . . . . . Fastest Speed 50 | 50 120 120 120 120 120 540 Average Speed 154 | 110 138 131 120 120 240 540 Slowest Speed 540 | 150 190 190 120 120 330 540 Overloaded Moves . | . . . . . . . Propulsion Burnouts . | . . . . . . . Robots Hopped . | . . . . . . . Cave-ins Triggered . | . . . . . . . Exploration Rate (%) 41 | 3 52 44 40 89 58 4 Regions Visited 6 Branch Regions 3 Pre-discovered Areas 2 | . . . . 2 . . Known Exits Taken . | . . . . . . . Unknown Exits Taken 6 | 1 1 1 1 1 1 . Scrap Searched 2 | . . . 1 1 . . Spaces Dug . | . . . . . . . Terrain Destroyed 32 | . . . . . 32 . Melee . | . . . . . . . Projectile . | . . . . . . . AOE 32 | . . . . . 32 . Terrain Rammed . | . . . . . . . Walls Destroyed . | . . . . . . . Machines Disabled . | . . . . . . . Actions | -11 -10 -9 -9 -7 -6 -6 --------- Run | Yrd Mat Mat Min Zio Pro Fac Total 2318 | 42 279 413 142 994 367 81 Wait 49 | . . 12 . 25 1 11 Move 2065 | 34 247 328 127 950 317 62 Hop . | . . . . . . . Pick Up 24 | 2 6 5 1 8 1 1 Fast Attach 8 | 6 . 2 . . . . Attach 19 | . 1 1 . . 11 6 Detach 2 | . . . . . 2 . Swap 13 | . 3 6 2 2 . . Drop 19 | . 1 4 4 9 1 . Fire 108 | . 20 50 8 . 30 . Melee 5 | . . . . . 4 1 Ram . | . . . . . . . Kick 6 | . 1 5 . . . . Crush . | . . . . . . . Escape Stasis . | . . . . . . . Rewire . | . . . . . . . Trap . | . . . . . . . Miscellaneous . | . . . . . . . Route ------- -11/Scrapyard -10/Materials (discovered 4 exits: *Mat x2 / [*Min x2]) -9/Materials -9/Mines -7/Zion -6/Proximity Caves -6/Factory History --------- Turn | Location | Event 10 | -11/Scrapyard | Discovered new exit (range 16) 50 | -11/Scrapyard | Entered Materials 128 | -10/Materials | Discovered new exit (range 3) 272 | -10/Materials | Discovered new exit (range 11) 305 | -10/Materials | Build established: Mutant 358 | -10/Materials | Discovered new exit (range 7) 403 | -10/Materials | Discovered new exit (range 14) 466 | -10/Materials | Entered another Materials area 466 | -9/Materials | Evolved 2 slots: Propulsion x2 931 | -9/Materials | Build established: Scavenger-Mutant 1024 | -9/Materials | Discovered new exit (range 7) 1083 | -9/Materials | Entered Mines 1138 | -9/Mines | Found a hidden stash of uninstalled traps 1212 | -9/Mines | Learned 2 Materials zone layouts 1263 | -9/Mines | A Derelict revealed a hidden shortcut to a safe place 1265 | -9/Mines | Entered Zion 1719 | -7/Zion | Learned location of Warlord (-5) 1766 | -7/Zion | Gained Derelict followers 2099 | -7/Zion | Imprinted 2101 | -7/Zion | Declared Zion's savior 2422 | -7/Zion | Discovered new exit (range 13) 2430 | -7/Zion | Found CR-A16's Pointy Stick 2445 | -7/Zion | Entered Proximity Caves 2445 | -6/Proximity Caves | Accompanied by 2 allies 2650 | -6/Proximity Caves | Core integrity fell below 50% 2719 | -6/Proximity Caves | Destroyed 7 combat bots 2726 | -6/Proximity Caves | Lost 9 parts (1p6n2w) 2938 | -6/Proximity Caves | Build established: Mutant 3210 | -6/Proximity Caves | Discovered new exit (range 10) 3302 | -6/Proximity Caves | Entered Factory 3302 | -6/Factory | Evolved 6 slots: Power x1, Utility x3, Weapon x2 3613 | -6/Factory | Build established: Scavenger-Skirmisher 3658 | -6/Factory | Self-destructed Last Messages --------------- 03407_ Destroyed Wheel. 03407_ Destroyed Imp. Terrain Scanner. 03407_ T-07 Excavator system corrupted by crushing effect. 03407_ Wheel fried. 03407_ Lgt. Ion Engine fried. 03407_ Seismic Detector fried. 03407_ T-07 Excavator destroyed. 03410_ Acquired 24 matter. 03552_ ALERT: Rogue bot located, Programmers report to Factory Zone 2R. 03604_ Connecting with Fabricator... 03604_ Current location identified: Factory 03640_ Fabricator completes H-66 Slayer. 03640_ ALERT: All DSF locations entering lockdown mode. 03642_ Detecting system override signal. 03643_ Penetrated by Slug. 03646_ Slug penetrates Wall. 03650_ Penetrated by Slug. 03654_ Slug penetrates Wall. 03657_ Prc. Grenade Launcher destroyed. 03657_ Slug penetrates Wall. Map ----- +----------------------------------------------------+ | ???????????????????????######## #???? | | ??????????????????????????????# #???? | | ?????????????????????????????#####+###########???? | | ?????????????????????????????# #?????????? | | ????????????????????###??????# ] #?????????? | | ????????????????????? ????# #?????????? | | ?????????????????????# ????# #?????????? | | ?????????????????????# #???# #?????????? | | ?????????????????????# ??+ +?????????? | | ?????????????????????# ??# #?????????? | | ?????????????????????# ??# #?????????? | | ?????????????????????# ??###+#######?????????? | | ?????????????????????# ##### ###?????????????? | | ?????????????????????# #?????????????? | | ?????????????????????# #?????????????? | | ?????????????????????+ +?????????????? | | ?????????????????????# #?????????????? | | ?????????????????????# "" #?????????????? | | ?????????????????????# """ #?????????????? | | ?????????????????????# "F #######???????? | | ?????????????????????# """ ????? | | ?????????????????###### "" ????? | | ?????????? x !!! """"?????? | | ?????????????????###### !! ""???????? | | ????????????????????####+######## !! ""???????? | | ????????????????????# @ #???? ??????? | | ????????????????????#[ "" +???? ??????? | | ????????????????????# G" #????##########??????? | | ????????????????????# "" #????????????????????? | | ????????????????????# !#????????????????????? | | ????????????????????#########????????????????????? | | | | | | | | | | | | | | | | | | | | | | | | | | | | | | | | | | | | | | | +----------------------------------------------------+ Best States ------------- Heat Dissipation 37 Energy Generation 24 Energy Capacity 465 Matter Stores 450 Matter Capacity 450 Sight Range 16 Robot Scan Range 14 Terrain Scan Density 10 Resistance: KI 20 Resistance: TH 20 Resistance: EX 20 Resistance: EM 20 Resistance: I 20 Resistance: S 20 Resistance: P 20 Evasion (%) 55 Offensive Hacking 10 Item Schematics ----------------- Aluminum Leg | -9/Materials | Scanalyzed Phase Cannon | -7/Zion | Archive Transmission Jammer | -7/Zion | Archive Arm. Huge Wheel | -7/Zion | Archive Lgt. Angular Momentum Engine | -7/Zion | Archive Adv. System Shield | -7/Zion | Archive Mak. Power Source | -7/Zion | Archive Angular Momentum Engine | -7/Zion | Archive Med. Treads | -7/Zion | Archive 0b10 Decoder Chip [Generic] | -7/Zion | Archive Gauss Cannon | -7/Zion | Archive Magnetic Acceleration Cannon | -7/Zion | Archive Plasma Cannon | -7/Zion | Archive Spk. Medium Treads | -7/Zion | Archive Hvy. Laser | -7/Zion | Archive Variable Charge Gun | -7/Zion | Archive Robot Schematics ------------------ B-36 Bruiser | -7/Zion | Archive L-41 Fighter | -7/Zion | Archive G-47 Trooper | -7/Zion | Archive Fabricated ------------ Nothing Alien Tech Used ----------------- None Achievements -------------- Backstab I'm Back, Baby! Robot Respite The One Challenges ------------ None Game ------ Seed ConcussiveLightpackTendrils Manual? 0 Play Time 00:31:38 Cumulative 4.4 hours Start 2024.04.01 @ 12:34:12 End 2024.04.01 @ 13:05:16 Sessions 1 Manual Loads 0 Difficulty Adventurer Special Mode None Game No. 12 Rogue 0 Adventurer 12 Explorer 0 Win Type - Total 0 Types 0/0/0/0/0/0/0/0/0 Lore% 11 Gallery% 14 Achievement% 13 Wizard Run 0 Options --------- Layout 0 ASCII 0 Keyboard 1 Movement Numpad Keybinds 0 Fullscreen 1 Font 24/Smallcaps Map View 76x50 Zoom Use 0% Tactical HUD 1 Map Filters NONE Filters NONE Steam 1 RUN: 65c26e86-ad79-4237-b7bb-5a1341379628